[Event "ETCC Women 2013"]
[Site "Warsaw"]
[Date "2013.11.12"]
[Round "5"]
[White "Mamedjarova, Zeinab"]
[Black "Milliet, Sophie"]
[Result "1/2-1/2"]
[ECO "D05"]
[WhiteElo "2236"]
[BlackElo "2383"]
[PlyCount "146"]
[EventDate "2013.??.??"]
[EventCountry "POL"]
[WhiteTeam "Azerbaijan"]
[BlackTeam "France"]
[WhiteTeamCountry "AZE"]
[BlackTeamCountry "FRA"]
[TimeControl "40/5400+30:1800+30"]

1. d4 {[%emt 0:00:00]} Nf6 {[%emt 0:00:00]} 2. Nf3 {[%emt 0:00:00]} e6 {[%emt
0:00:00]} 3. e3 {[%emt 0:00:12]} d5 {[%emt 0:00:24]} 4. Bd3 {[%emt 0:00:24]} c5
{[%emt 0:00:18]} 5. O-O {[%emt 0:09:49]} c4 {[%emt 0:01:18]} 6. Be2 {[%emt 0:
07:55]} b5 {[%emt 0:00:06]} 7. b3 {[%emt 0:04:55]} Bb7 {[%emt 0:01:11]} 8. a4 {
[%emt 0:05:44]} a6 {[%emt 0:00:19]} 9. Ne5 {[%emt 0:02:04]} Bd6 {[%emt 0:11:23]
} 10. f4 {[%emt 0:08:06]} O-O {[%emt 0:02:39]} 11. Bd2 {[%emt 0:06:33]} Ne4 {
[%emt 0:04:29]} 12. Bf3 {[%emt 0:06:35]} Nxd2 {[%emt 0:01:04]} 13. Qxd2 {[%emt
0:01:36]} f6 {[%emt 0:00:43]} 14. Ng4 {[%emt 0:03:45]} Nd7 {[%emt 0:00:47]} 15.
bxc4 {[%emt 0:06:43]} bxc4 {[%emt 0:00:05]} 16. c3 {[%emt 0:03:38]} Qc7 {[%emt
0:16:47]} 17. g3 {[%emt 0:04:30]} Bc6 {[%emt 0:08:06]} 18. Qc2 {[%emt 0:04:05]}
f5 {[%emt 0:02:09]} 19. Ne5 {[%emt 0:02:29]} Nxe5 {[%emt 0:00:12]} 20. fxe5 {
[%emt 0:00:29]} Be7 {[%emt 0:00:04]} 21. Nd2 {[%emt 0:00:17]} Bg5 {[%emt 0:00:
34]} 22. Kf2 {[%emt 0:02:43]} Rab8 {[%emt 0:06:50]} 23. Rfb1 {[%emt 0:01:28]}
a5 {[%emt 0:01:52]} 24. Qa2 {[%emt 0:01:46]} Qd7 {[%emt 0:05:02]} 25. Bd1 {
[%emt 0:01:24]} Be7 {[%emt 0:05:27]} 26. Nf3 {[%emt 0:05:52]} Rfc8 {[%emt 0:01:
41]} 27. Ne1 {[%emt 0:04:11]} g5 {[%emt 0:01:44]} 28. Nf3 {[%emt 0:00:20]} Qe8
{[%emt 0:01:25]} 29. Qc2 {[%emt 0:05:02]} Kg7 {[%emt 0:09:21]} 30. Qa2 {[%emt
0:01:51]} Qh5 {[%emt 0:12:47]} 31. Kg1 {[%emt 0:00:12]} Qh6 {[%emt 0:01:09]}
32. Qd2 {[%emt 0:00:30]} Kh8 {[%emt 0:01:44]} 33. Ne1 {[%emt 0:00:22]} Qf8 {
[%emt 0:02:20]} 34. Ng2 {[%emt 0:00:23]} Rxb1 {[%emt 0:00:55]} 35. Rxb1 {[%emt
0:00:04]} Rb8 {[%emt 0:00:07]} 36. Rxb8 {[%emt 0:01:09]} Qxb8 {[%emt 0:00:01]}
37. Qc1 {[%emt 0:00:34]} Kg7 {[%emt 0:00:19]} 38. Kf2 {[%emt 0:00:45]} Be8 {
[%emt 0:01:28]} 39. Ne1 {[%emt 0:00:29]} Bd7 {[%emt 0:01:11]} 40. Ng2 {[%emt 0:
00:00]} Be8 {[%emt 0:00:00]} 41. Kg1 {[%emt 0:02:49]} Qb7 {[%emt 0:03:01]} 42.
Kf2 {[%emt 0:01:11]} h6 {[%emt 0:01:55]} 43. Ke1 {[%emt 0:01:26]} Bc6 {[%emt 0:
01:33]} 44. Kf2 {[%emt 0:00:51]} Qb8 {[%emt 0:00:49]} 45. Ke1 {[%emt 0:01:36]}
Bf8 {[%emt 0:03:56]} 46. Kf2 {[%emt 0:01:13]} Qe8 {[%emt 0:05:17]} 47. Qc2 {
[%emt 0:00:56]} Qe7 {[%emt 0:01:52]} 48. Qb2 {[%emt 0:01:15]} Qb7 {[%emt 0:07:
18]} 49. Qxb7+ {[%emt 0:01:42]} Bxb7 {[%emt 0:00:01]} 50. Ke1 {[%emt 0:01:00]}
Ba3 {[%emt 0:00:32]} 51. Kd2 {[%emt 0:00:45]} Bc6 {[%emt 0:00:09]} 52. Ne1 {
[%emt 0:01:08]} Kg6 {[%emt 0:02:27]} 53. Nc2 {[%emt 0:02:25]} Be7 {[%emt 0:00:
15]} 54. Ne1 {[%emt 0:00:05]} Bd7 {[%emt 0:00:22]} 55. Ng2 {[%emt 0:00:20]} Ba3
{[%emt 0:01:31]} 56. Bc2 {[%emt 0:01:28]} Kg7 {[%emt 0:02:08]} 57. Bd1 {[%emt
0:00:48]} Be8 {[%emt 0:00:25]} 58. Ne1 {[%emt 0:00:16]} Bf8 {[%emt 0:00:51]}
59. Ng2 {[%emt 0:00:45]} Be7 {[%emt 0:00:03]} 60. Ke1 {[%emt 0:00:49]} Bd7 {
[%emt 0:01:40]} 61. Kd2 {[%emt 0:00:21]} Ba3 {[%emt 0:01:56]} 62. Ne1 {[%emt 0:
00:17]} Kg6 {[%emt 0:01:00]} 63. Ng2 {[%emt 0:00:39]} Be7 {[%emt 0:00:19]} 64.
Ke1 {[%emt 0:00:30]} Bf8 {[%emt 0:01:27]} 65. Kd2 {[%emt 0:00:15]} Ba3 {[%emt
0:01:47]} 66. Ne1 {[%emt 0:00:09]} Bf8 {[%emt 0:01:22]} 67. Ng2 {[%emt 0:00:07]
} h5 {[%emt 0:00:48]} 68. h4 {[%emt 0:05:31]} Bh6 {[%emt 0:00:37]} 69. hxg5 {
[%emt 0:03:48]} Bxg5 {[%emt 0:00:07]} 70. Nf4+ {[%emt 0:03:47]} Bxf4 {[%emt 0:
00:04]} 71. exf4 {[%emt 0:00:04]} Kh6 {[%emt 0:00:08]} 72. Ke3 {[%emt 0:00:09]}
Be8 {[%emt 0:00:05]} 73. Kf2 {[%emt 0:00:22]} Bf7 {[%emt 0:00:26]} 1/2-1/2

[Event "ETCC Women 2013"]
[Site "Warsaw"]
[Date "2013.11.12"]
[Round "5"]
[White "Michna, Marta"]
[Black "Girya, Olga"]
[Result "1/2-1/2"]
[ECO "A06"]
[WhiteElo "2357"]
[BlackElo "2447"]
[PlyCount "137"]
[EventDate "2013.??.??"]
[EventCountry "POL"]
[WhiteTeam "Germany"]
[BlackTeam "Russia"]
[WhiteTeamCountry "GER"]
[BlackTeamCountry "RUS"]
[TimeControl "40/5400+30:1800+30"]

1. Nf3 {[%emt 0:00:00]} d5 {[%emt 0:00:00]} 2. g3 {[%emt 0:00:25]} c6 {[%emt 0:
00:21]} 3. Bg2 {[%emt 0:00:04]} Bg4 {[%emt 0:00:06]} 4. d3 {[%emt 0:00:43]} Nd7
{[%emt 0:00:28]} 5. O-O {[%emt 0:00:09]} Ngf6 {[%emt 0:00:35]} 6. Qe1 {[%emt 0:
06:23]} e5 {[%emt 0:01:43]} 7. e4 {[%emt 0:00:14]} dxe4 {[%emt 0:01:22]} 8.
dxe4 {[%emt 0:00:05]} Bc5 {[%emt 0:06:02]} 9. Nbd2 {[%emt 0:00:30]} O-O {[%emt
0:00:40]} 10. h3 {[%emt 0:00:02]} Bh5 {[%emt 0:00:31]} 11. Nc4 {[%emt 0:00:39]}
Re8 {[%emt 0:01:41]} 12. Nh4 {[%emt 0:02:25]} Qc7 {[%emt 0:07:17]} 13. Bg5 {
[%emt 0:12:34]} Re6 {[%emt 0:06:44]} 14. a4 {[%emt 0:06:03]} Nb6 {[%emt 0:04:
50]} 15. Nd2 {[%emt 0:28:22]} Ne8 {[%emt 0:21:46]} 16. a5 {[%emt 0:01:52]} Nd7
{[%emt 0:00:03]} 17. Nb3 {[%emt 0:02:41]} Bf8 {[%emt 0:02:32]} 18. Be3 {[%emt
0:03:57]} Nd6 {[%emt 0:01:16]} 19. Nf5 {[%emt 0:02:50]} f6 {[%emt 0:01:43]} 20.
Nxd6 {[%emt 0:03:21]} Bxd6 {[%emt 0:01:08]} 21. Qc3 {[%emt 0:04:02]} Ree8 {
[%emt 0:04:58]} 22. Rfe1 {[%emt 0:02:22]} Nf8 {[%emt 0:06:27]} 23. Nc5 {[%emt
0:04:37]} Bxc5 {[%emt 0:01:37]} 24. Bxc5 {[%emt 0:03:08]} Ne6 {[%emt 0:00:11]}
25. Qe3 {[%emt 0:02:25]} Nxc5 {[%emt 0:02:34]} 26. Qxc5 {[%emt 0:00:03]} Red8 {
[%emt 0:02:08]} 27. Bf1 {[%emt 0:02:59]} Qd6 {[%emt 0:01:28]} 28. Qxd6 {[%emt
0:00:29]} Rxd6 {[%emt 0:00:02]} 29. Bc4+ {[%emt 0:02:45]} Kf8 {[%emt 0:02:07]}
30. Ra3 {[%emt 0:00:27]} Rad8 {[%emt 0:00:27]} 31. Rd3 {[%emt 0:01:09]} Ke7 {
[%emt 0:00:39]} 32. Kg2 {[%emt 0:03:00]} Rd4 {[%emt 0:00:53]} 33. b3 {[%emt 0:
00:22]} Rxd3 {[%emt 0:10:58]} 34. Bxd3 {[%emt 0:00:05]} Bf7 {[%emt 0:00:04]}
35. Kf3 {[%emt 0:00:50]} c5 {[%emt 0:01:58]} 36. Ke3 {[%emt 0:00:10]} Kd6 {
[%emt 0:00:37]} 37. h4 {[%emt 0:01:36]} Kc6 {[%emt 0:01:08]} 38. Rb1 {[%emt 0:
00:54]} b6 {[%emt 0:06:54]} 39. axb6 {[%emt 0:00:10]} axb6 {[%emt 0:00:20]} 40.
Ra1 {[%emt 0:00:00]} Kb7 {[%emt 0:00:00]} 41. Bb5 {[%emt 0:03:51]} Rd4 {[%emt
0:03:49]} 42. f3 {[%emt 0:05:34]} Be6 {[%emt 0:02:42]} 43. Ba6+ {[%emt 0:02:56]
} Kc6 {[%emt 0:01:39]} 44. Be2 {[%emt 0:00:48]} Kb7 {[%emt 0:01:05]} 45. Ba6+ {
[%emt 0:02:05]} Kb8 {[%emt 0:01:33]} 46. Be2 {[%emt 0:00:37]} Rd7 {[%emt 0:03:
18]} 47. Bb5 {[%emt 0:02:53]} Ra7 {[%emt 0:03:10]} 48. Rxa7 {[%emt 0:02:01]}
Kxa7 {[%emt 0:00:01]} 49. Bc6 {[%emt 0:01:20]} Kb8 {[%emt 0:01:04]} 50. Bd5 {
[%emt 0:03:56]} Bd7 {[%emt 0:00:15]} 51. Bg8 {[%emt 0:00:27]} h6 {[%emt 0:00:
02]} 52. h5 {[%emt 0:01:32]} Kc7 {[%emt 0:00:24]} 53. g4 {[%emt 0:00:11]} Kd6 {
[%emt 0:00:18]} 54. Bf7 {[%emt 0:00:46]} Bb5 {[%emt 0:00:20]} 55. c4 {[%emt 0:
00:36]} Bd7 {[%emt 0:00:15]} 56. Bd5 {[%emt 0:00:38]} Kc7 {[%emt 0:00:33]} 57.
Kd2 {[%emt 0:00:16]} Be8 {[%emt 0:01:57]} 58. Ke3 {[%emt 0:03:56]} Kb8 {[%emt
0:00:28]} 59. Be6 {[%emt 0:00:44]} Kb7 {[%emt 0:00:56]} 60. f4 {[%emt 0:02:34]}
g5 {[%emt 0:03:36]} 61. fxe5 {[%emt 0:03:24]} fxe5 {[%emt 0:00:09]} 62. Kd3 {
[%emt 0:00:13]} Ka6 {[%emt 0:00:14]} 63. Kc3 {[%emt 0:00:07]} Ka5 {[%emt 0:00:
12]} 64. Bc8 {[%emt 0:01:17]} Bf7 {[%emt 0:05:04]} 65. Bd7 {[%emt 0:00:27]} Bg8
{[%emt 0:00:27]} 66. Bf5 {[%emt 0:00:35]} b5 {[%emt 0:00:50]} 67. cxb5 {[%emt
0:00:13]} Kxb5 68. Bg6 Kb6 69. Bf5 1/2-1/2

[Event "ETCC Women 2013"]
[Site "Warsaw"]
[Date "2013.11.12"]
[Round "5"]
[White "Muzychuk, Mariya"]
[Black "Rajlich, Iweta"]
[Result "1-0"]
[ECO "A45"]
[WhiteElo "2491"]
[BlackElo "2404"]
[PlyCount "115"]
[EventDate "2013.??.??"]
[EventCountry "POL"]
[WhiteTeam "Ukraine"]
[BlackTeam "Poland"]
[WhiteTeamCountry "UKR"]
[BlackTeamCountry "POL"]
[TimeControl "40/5400+30:1800+30"]

1. d4 {[%emt 0:00:00]} Nf6 {[%emt 0:00:00]} 2. Bg5 {[%emt 0:00:00]} d5 {[%emt
0:00:18]} 3. Bxf6 {[%emt 0:00:02]} gxf6 {[%emt 0:00:08]} 4. Nf3 {[%emt 0:01:56]
} c6 {[%emt 0:00:10]} 5. e3 {[%emt 0:03:04]} Qb6 {[%emt 0:00:13]} 6. Qc1 {
[%emt 0:00:40]} Bg4 {[%emt 0:04:19]} 7. Nbd2 {[%emt 0:01:40]} Nd7 {[%emt 0:01:
26]} 8. h3 {[%emt 0:03:38]} Bh5 {[%emt 0:02:13]} 9. Bd3 {[%emt 0:05:59]} e6 {
[%emt 0:05:16]} 10. O-O {[%emt 0:01:55]} Bd6 {[%emt 0:12:11]} 11. c4 {[%emt 0:
02:17]} Bxf3 {[%emt 0:13:44]} 12. Nxf3 {[%emt 0:00:41]} dxc4 {[%emt 0:00:43]}
13. Bxc4 {[%emt 0:01:59]} Qa5 {[%emt 0:00:09]} 14. Nd2 {[%emt 0:08:13]} Rg8 {
[%emt 0:07:47]} 15. Be2 {[%emt 0:04:15]} Qg5 {[%emt 0:13:51]} 16. Bf3 {[%emt 0:
00:07]} f5 {[%emt 0:03:58]} 17. Nc4 {[%emt 0:03:29]} Bc7 {[%emt 0:00:45]} 18.
b4 {[%emt 0:01:59]} Rg6 {[%emt 0:04:02]} 19. Rd1 {[%emt 0:16:14]} f4 {[%emt 0:
04:04]} 20. e4 {[%emt 0:02:09]} e5 {[%emt 0:03:58]} 21. d5 {[%emt 0:07:45]} Rd8
{[%emt 0:04:43]} 22. Qc3 {[%emt 0:08:58]} Kf8 {[%emt 0:03:29]} 23. a4 {[%emt 0:
01:11]} Kg8 {[%emt 0:00:06]} 24. Rd2 {[%emt 0:06:32]} c5 {[%emt 0:03:12]} 25.
bxc5 {[%emt 0:05:44]} Nxc5 {[%emt 0:00:23]} 26. d6 {[%emt 0:00:20]} Bb8 {[%emt
0:03:41]} 27. Rd5 {[%emt 0:00:50]} Nd7 {[%emt 0:01:16]} 28. Rb1 {[%emt 0:02:41]
} b6 {[%emt 0:01:36]} 29. a5 {[%emt 0:00:13]} Rc8 {[%emt 0:00:11]} 30. Qb4 {
[%emt 0:03:48]} Kh8 {[%emt 0:03:26]} 31. axb6 {[%emt 0:01:30]} axb6 {[%emt 0:
00:08]} 32. Qb5 {[%emt 0:02:05]} Qd8 {[%emt 0:01:45]} 33. Bg4 {[%emt 0:00:31]}
Rxc4 {[%emt 0:00:28]} 34. Qxc4 {[%emt 0:00:34]} Nf6 {[%emt 0:00:59]} 35. Rd3 {
[%emt 0:01:46]} Kg7 {[%emt 0:01:38]} 36. Bf5 {[%emt 0:00:35]} Rg5 {[%emt 0:00:
20]} 37. Qc8 {[%emt 0:00:43]} Qxc8 {[%emt 0:00:57]} 38. Bxc8 {[%emt 0:00:03]}
f3 {[%emt 0:00:24]} 39. g3 {[%emt 0:00:18]} Nxe4 {[%emt 0:00:20]} 40. d7 {
[%emt 0:00:00]} Bc7 {[%emt 0:00:00]} 41. d8=Q {[%emt 0:01:12]} Bxd8 {[%emt 0:
01:29]} 42. Rxd8 {[%emt 0:00:04]} Nc3 {[%emt 0:00:14]} 43. Rxb6 {[%emt 0:00:17]
} e4 {[%emt 0:00:36]} 44. Bb7 {[%emt 0:01:47]} Ra5 {[%emt 0:10:50]} 45. Ra8 {
[%emt 0:02:53]} Ne2+ {[%emt 0:03:22]} 46. Kh2 {[%emt 0:00:30]} Re5 {[%emt 0:01:
05]} 47. Ra3 {[%emt 0:01:47]} f5 {[%emt 0:00:02]} 48. Ba6 {[%emt 0:02:30]} f4 {
[%emt 0:03:42]} 49. gxf4 {[%emt 0:02:54]} Nxf4 {[%emt 0:00:04]} 50. Bc4 {[%emt
0:00:06]} Ng6 {[%emt 0:01:37]} 51. Ra7+ {[%emt 0:02:20]} Kh6 {[%emt 0:00:11]}
52. Rbb7 {[%emt 0:03:30]} Rf5 {[%emt 0:03:03]} 53. Rxh7+ {[%emt 0:00:41]} Kg5 {
[%emt 0:00:03]} 54. Ra1 {[%emt 0:01:58]} Kf4 {[%emt 0:01:55]} 55. Rg1 {[%emt 0:
00:16]} Rf6 {[%emt 0:00:45]} 56. Rh6 {[%emt 0:00:22]} Rc6 {[%emt 0:01:11]} 57.
Rgxg6 {[%emt 0:00:38]} Rxc4 {[%emt 0:00:12]} 58. Rh5 {[%emt 0:00:07]} 1-0

[Event "ETCC Women 2013"]
[Site "Warsaw"]
[Date "2013.11.12"]
[Round "5"]
[White "Newrkla, Katharina"]
[Black "Stetsko, Lanita"]
[Result "1-0"]
[ECO "C95"]
[WhiteElo "2173"]
[BlackElo "2226"]
[PlyCount "79"]
[EventDate "2013.??.??"]
[EventCountry "POL"]
[WhiteTeam "Austria"]
[BlackTeam "Belarus"]
[WhiteTeamCountry "AUT"]
[BlackTeamCountry "BLR"]
[TimeControl "40/5400+30:1800+30"]

1. e4 {[%emt 0:00:00]} e5 {[%emt 0:00:00]} 2. Nf3 {[%emt 0:00:00]} Nc6 {[%emt
0:00:00]} 3. Bb5 {[%emt 0:00:00]} a6 {[%emt 0:00:00]} 4. Ba4 {[%emt 0:00:00]}
Nf6 {[%emt 0:00:00]} 5. O-O {[%emt 0:00:00]} Be7 {[%emt 0:00:07]} 6. Re1 {
[%emt 0:00:03]} b5 {[%emt 0:00:13]} 7. Bb3 {[%emt 0:00:04]} d6 {[%emt 0:00:11]}
8. c3 {[%emt 0:00:08]} O-O {[%emt 0:00:14]} 9. h3 {[%emt 0:00:05]} Nb8 {[%emt
0:00:17]} 10. d4 {[%emt 0:00:07]} Nbd7 {[%emt 0:00:08]} 11. Nbd2 {[%emt 0:00:
10]} Bb7 {[%emt 0:00:12]} 12. Bc2 {[%emt 0:00:16]} Re8 {[%emt 0:00:09]} 13. a4
{[%emt 0:00:24]} Bf8 {[%emt 0:00:27]} 14. Bd3 {[%emt 0:00:44]} c6 {[%emt 0:00:
25]} 15. b4 {[%emt 0:00:51]} Rc8 {[%emt 0:10:55]} 16. Bb2 {[%emt 0:01:45]} Nb6
{[%emt 0:05:16]} 17. axb5 {[%emt 0:00:38]} cxb5 {[%emt 0:00:42]} 18. d5 {[%emt
0:00:41]} Rc7 {[%emt 0:09:37]} 19. Qc2 {[%emt 0:25:26]} Qc8 {[%emt 0:05:39]}
20. Ra3 {[%emt 0:08:00]} Nh5 {[%emt 0:08:36]} 21. Bf1 {[%emt 0:16:10]} f5 {
[%emt 0:11:53]} 22. exf5 {[%emt 0:07:49]} Bxd5 {[%emt 0:03:04]} 23. Rea1 {
[%emt 0:08:37]} Bb7 {[%emt 0:07:26]} 24. Ng5 {[%emt 0:02:48]} h6 {[%emt 0:05:
22]} 25. Ne6 {[%emt 0:02:33]} Rf7 {[%emt 0:01:55]} 26. c4 {[%emt 0:01:30]} bxc4
{[%emt 0:05:44]} 27. Nxc4 {[%emt 0:05:19]} Nd5 {[%emt 0:15:26]} 28. Qd1 {[%emt
0:03:04]} Nhf4 {[%emt 0:01:43]} 29. Nxf8 {[%emt 0:00:36]} Qxf5 {[%emt 0:04:20]}
30. Nxd6 {[%emt 0:07:11]} Nxh3+ {[%emt 0:00:26]} 31. Rxh3 {[%emt 0:00:14]}
Qxf2+ {[%emt 0:00:07]} 32. Kh1 {[%emt 0:02:44]} Nf4 {[%emt 0:01:12]} 33. Rh2 {
[%emt 0:06:05]} Rexf8 {[%emt 0:04:06]} 34. Nxf7 {[%emt 0:00:46]} Qxb2 {[%emt 0:
00:30]} 35. Rb1 {[%emt 0:01:21]} Qf2 {[%emt 0:00:25]} 36. Nxe5 {[%emt 0:00:31]}
Be4 {[%emt 0:00:38]} 37. Rc1 {[%emt 0:00:31]} Qg3 {[%emt 0:00:15]} 38. Qe1 {
[%emt 0:00:47]} Qg5 {[%emt 0:00:46]} 39. Qxe4 {[%emt 0:00:35]} Nh3 {[%emt 0:00:
31]} 40. Qc4+ {[%emt 0:00:00]} 1-0

[Event "ETCC Women 2013"]
[Site "Warsaw"]
[Date "2013.11.12"]
[Round "5"]
[White "Olsarova, Tereza"]
[Black "Stoeri, Laura"]
[Result "1-0"]
[ECO "B01"]
[WhiteElo "2248"]
[BlackElo "2102"]
[PlyCount "65"]
[EventDate "2013.??.??"]
[EventCountry "POL"]
[WhiteTeam "Czech Republic"]
[BlackTeam "Switzerland"]
[WhiteTeamCountry "CZE"]
[BlackTeamCountry "SUI"]
[TimeControl "40/5400+30:1800+30"]

1. e4 {[%emt 0:00:00]} d5 {[%emt 0:00:00]} 2. exd5 {[%emt 0:01:45]} Qxd5 {
[%emt 0:00:00]} 3. Nc3 {[%emt 0:00:06]} Qa5 {[%emt 0:00:00]} 4. d4 {[%emt 0:00:
33]} Nf6 {[%emt 0:00:00]} 5. Bd2 {[%emt 0:01:18]} c6 {[%emt 0:00:02]} 6. Bc4 {
[%emt 0:01:14]} Qc7 {[%emt 0:00:09]} 7. Qe2 {[%emt 0:02:15]} Bf5 {[%emt 0:00:
06]} 8. O-O-O {[%emt 0:00:58]} e6 {[%emt 0:00:33]} 9. f3 {[%emt 0:02:12]} Be7 {
[%emt 0:08:38]} 10. g4 {[%emt 0:00:41]} Bg6 {[%emt 0:00:11]} 11. h4 {[%emt 0:
01:42]} h6 {[%emt 0:13:34]} 12. Nh3 {[%emt 0:03:14]} Nd5 {[%emt 0:17:27]} 13.
Bxd5 {[%emt 0:06:39]} cxd5 {[%emt 0:00:53]} 14. Nf4 {[%emt 0:00:22]} Bh7 {
[%emt 0:01:01]} 15. g5 {[%emt 0:01:39]} Bf5 {[%emt 0:22:18]} 16. Nh5 {[%emt 0:
01:08]} g6 {[%emt 0:13:57]} 17. Bf4 {[%emt 0:04:55]} Qc6 {[%emt 0:12:41]} 18.
Ng7+ {[%emt 0:02:30]} Kd7 {[%emt 0:01:21]} 19. Nxf5 {[%emt 0:01:52]} gxf5 {
[%emt 0:00:08]} 20. gxh6 {[%emt 0:01:15]} Na6 {[%emt 0:00:11]} 21. Rdg1 {[%emt
0:01:49]} Bf6 {[%emt 0:00:37]} 22. Nb5 {[%emt 0:08:08]} Nb4 {[%emt 0:03:40]}
23. Kb1 {[%emt 0:18:57]} a6 {[%emt 0:00:24]} 24. Nd6 {[%emt 0:00:47]} Bxd4 {
[%emt 0:02:10]} 25. Rd1 {[%emt 0:00:16]} Bf6 {[%emt 0:01:31]} 26. Nxf7 {[%emt
0:02:42]} Rhc8 {[%emt 0:00:17]} 27. c3 {[%emt 0:03:05]} Nxa2 {[%emt 0:00:49]}
28. Be5 {[%emt 0:01:36]} Ke7 {[%emt 0:00:47]} 29. Ng5 {[%emt 0:03:41]} Bxe5 {
[%emt 0:00:27]} 30. Qxe5 {[%emt 0:00:13]} Nb4 {[%emt 0:00:25]} 31. Qg7+ {[%emt
0:01:05]} Kd6 {[%emt 0:00:38]} 32. Nf7+ {[%emt 0:00:11]} Kc7 {[%emt 0:00:26]}
33. Ne5+ {[%emt 0:00:13]} 1-0

[Event "ETCC Women 2013"]
[Site "Warsaw"]
[Date "2013.11.12"]
[Round "5"]
[White "Pavlidou, Ekaterini"]
[Black "Kulon, Klaudia"]
[Result "0-1"]
[ECO "D86"]
[WhiteElo "2199"]
[BlackElo "2276"]
[PlyCount "90"]
[EventDate "2013.??.??"]
[EventCountry "POL"]
[WhiteTeam "Greece"]
[BlackTeam "Poland"]
[WhiteTeamCountry "GRE"]
[BlackTeamCountry "POL"]
[TimeControl "40/5400+30:1800+30"]

1. d4 {[%emt 0:00:00]} Nf6 {[%emt 0:00:00]} 2. c4 {[%emt 0:00:00]} g6 {[%emt 0:
00:00]} 3. Nc3 {[%emt 0:00:07]} d5 {[%emt 0:00:00]} 4. cxd5 {[%emt 0:00:51]}
Nxd5 {[%emt 0:00:00]} 5. e4 {[%emt 0:02:09]} Nxc3 {[%emt 0:00:03]} 6. bxc3 {
[%emt 0:00:08]} Bg7 {[%emt 0:00:06]} 7. Bc4 {[%emt 0:01:09]} c5 {[%emt 0:00:39]
} 8. Ne2 {[%emt 0:00:25]} O-O {[%emt 0:00:30]} 9. O-O {[%emt 0:00:31]} Nc6 {
[%emt 0:00:25]} 10. Be3 {[%emt 0:00:14]} Qc7 {[%emt 0:00:37]} 11. Rc1 {[%emt 0:
03:02]} Rd8 {[%emt 0:02:06]} 12. Qd2 {[%emt 0:01:28]} Ne5 {[%emt 0:02:09]} 13.
Bd5 {[%emt 0:02:32]} Ng4 {[%emt 0:12:14]} 14. Bf4 {[%emt 0:00:19]} e5 {[%emt 0:
01:02]} 15. Bg3 {[%emt 0:02:38]} Qa5 {[%emt 0:12:40]} 16. Qb2 {[%emt 0:05:43]}
Nf6 {[%emt 0:05:27]} 17. Bxe5 {[%emt 0:03:59]} Nxd5 {[%emt 0:00:06]} 18. Bxg7 {
[%emt 0:00:49]} Kxg7 {[%emt 0:00:35]} 19. exd5 {[%emt 0:00:09]} c4 {[%emt 0:04:
43]} 20. Nf4 {[%emt 0:02:36]} Qc7 {[%emt 0:01:32]} 21. Qd2 {[%emt 0:01:11]} Re8
{[%emt 0:01:40]} 22. Rce1 {[%emt 0:03:33]} Bf5 {[%emt 0:04:34]} 23. h3 {[%emt
0:09:25]} Qd6 {[%emt 0:02:14]} 24. f3 {[%emt 0:12:23]} b5 {[%emt 0:04:14]} 25.
g4 {[%emt 0:07:28]} Bd7 {[%emt 0:00:35]} 26. h4 {[%emt 0:04:56]} b4 {[%emt 0:
03:03]} 27. Re4 {[%emt 0:07:47]} a5 {[%emt 0:07:29]} 28. Qh2 {[%emt 0:05:56]}
Kg8 {[%emt 0:01:04]} 29. Rfe1 {[%emt 0:03:18]} b3 {[%emt 0:01:48]} 30. axb3 {
[%emt 0:04:37]} cxb3 {[%emt 0:00:12]} 31. c4 {[%emt 0:02:26]} Qb4 {[%emt 0:01:
08]} 32. Rxe8+ {[%emt 0:02:38]} Rxe8 {[%emt 0:00:02]} 33. Rxe8+ {[%emt 0:01:19]
} Bxe8 {[%emt 0:00:01]} 34. Qe2 {[%emt 0:01:47]} Bd7 {[%emt 0:00:04]} 35. Nd3 {
[%emt 0:01:34]} Qxc4 {[%emt 0:01:39]} 36. Qe5 {[%emt 0:01:00]} h6 {[%emt 0:03:
19]} 37. Nc5 {[%emt 0:02:54]} Bb5 {[%emt 0:03:17]} 38. Qb8+ {[%emt 0:00:06]}
Kh7 {[%emt 0:00:14]} 39. Kh2 {[%emt 0:05:09]} b2 {[%emt 0:02:48]} 40. Ne6 {
[%emt 0:00:00]} Qe2+ {[%emt 0:00:00]} 41. Kg3 {[%emt 0:01:13]} b1=Q {[%emt 0:
03:01]} 42. Nf8+ {[%emt 0:01:16]} Kg7 {[%emt 0:00:04]} 43. Ne6+ {[%emt 0:00:07]
} Qxe6 {[%emt 0:00:05]} 44. dxe6 {[%emt 0:00:11]} Qg1+ {[%emt 0:00:05]} 45. Kf4
Qh2+ 0-1

[Event "ETCC Women 2013"]
[Site "Warsaw"]
[Date "2013.11.12"]
[Round "5"]
[White "Pogonina, Natalija"]
[Black "Melamed, Tatjana"]
[Result "0-1"]
[ECO "E15"]
[WhiteElo "2499"]
[BlackElo "2367"]
[PlyCount "90"]
[EventDate "2013.??.??"]
[EventCountry "POL"]
[WhiteTeam "Russia"]
[BlackTeam "Germany"]
[WhiteTeamCountry "RUS"]
[BlackTeamCountry "GER"]
[TimeControl "40/5400+30:1800+30"]

1. d4 {[%emt 0:00:00]} Nf6 {[%emt 0:00:00]} 2. c4 {[%emt 0:00:00]} e6 {[%emt 0:
00:17]} 3. Nf3 {[%emt 0:00:12]} b6 {[%emt 0:00:52]} 4. g3 {[%emt 0:00:50]} Ba6
{[%emt 0:01:12]} 5. b3 {[%emt 0:00:46]} Bb4+ {[%emt 0:00:32]} 6. Bd2 {[%emt 0:
00:16]} Be7 {[%emt 0:00:11]} 7. Nc3 {[%emt 0:03:28]} d5 {[%emt 0:01:42]} 8.
cxd5 {[%emt 0:02:15]} exd5 {[%emt 0:00:25]} 9. Bg2 {[%emt 0:00:07]} O-O {[%emt
0:01:34]} 10. O-O {[%emt 0:00:21]} Bb7 {[%emt 0:01:14]} 11. Bc1 {[%emt 0:04:10]
} Nbd7 {[%emt 0:03:21]} 12. Bb2 {[%emt 0:00:42]} Re8 {[%emt 0:03:04]} 13. Rc1 {
[%emt 0:04:15]} Bf8 {[%emt 0:11:22]} 14. Re1 {[%emt 0:02:57]} a6 {[%emt 0:05:
40]} 15. e3 {[%emt 0:04:32]} Bd6 {[%emt 0:06:31]} 16. Ne2 {[%emt 0:04:22]} Qe7
{[%emt 0:07:46]} 17. Nf4 {[%emt 0:07:38]} Ne4 {[%emt 0:07:29]} 18. Qc2 {[%emt
0:10:10]} c6 {[%emt 0:07:39]} 19. Red1 {[%emt 0:04:53]} Rac8 {[%emt 0:02:02]}
20. Qe2 {[%emt 0:01:55]} Ng5 {[%emt 0:11:01]} 21. Nxg5 {[%emt 0:06:09]} Qxg5 {
[%emt 0:00:07]} 22. Nd3 {[%emt 0:00:44]} Qe7 {[%emt 0:02:08]} 23. Rc2 {[%emt 0:
01:51]} Nf6 {[%emt 0:03:58]} 24. Re1 {[%emt 0:04:21]} h5 {[%emt 0:02:53]} 25.
Ne5 {[%emt 0:03:31]} h4 {[%emt 0:00:51]} 26. gxh4 {[%emt 0:01:25]} c5 {[%emt 0:
04:17]} 27. f4 {[%emt 0:04:31]} Ne4 {[%emt 0:06:24]} 28. h5 {[%emt 0:08:11]}
cxd4 {[%emt 0:01:23]} 29. Rxc8 {[%emt 0:01:20]} Rxc8 {[%emt 0:00:08]} 30. Bxd4
{[%emt 0:00:22]} Qh4 {[%emt 0:01:00]} 31. Nf3 {[%emt 0:03:38]} Qxh5 {[%emt 0:
00:22]} 32. Bxb6 {[%emt 0:00:37]} Bb4 {[%emt 0:00:31]} 33. Ra1 {[%emt 0:08:37]}
Rc6 {[%emt 0:01:15]} 34. Bd4 {[%emt 0:00:17]} Bc8 {[%emt 0:00:22]} 35. Qf1 {
[%emt 0:02:49]} Rg6 {[%emt 0:01:46]} 36. Ng5 {[%emt 0:04:19]} Nxg5 {[%emt 0:01:
36]} 37. fxg5 {[%emt 0:00:04]} Bd6 {[%emt 0:00:22]} 38. Qf3 {[%emt 0:01:34]}
Qxh2+ {[%emt 0:01:25]} 39. Kf2 {[%emt 0:00:35]} Qh4+ {[%emt 0:00:15]} 40. Kf1 {
[%emt 0:00:00]} Rxg5 {[%emt 0:00:00]} 41. e4 {[%emt 0:12:22]} Rg3 {[%emt 0:12:
15]} 42. Qf2 {[%emt 0:08:50]} Bh3 {[%emt 0:01:09]} 43. Bxh3 {[%emt 0:00:53]}
Qxh3+ {[%emt 0:00:05]} 44. Ke1 {[%emt 0:00:40]} Rg2 {[%emt 0:01:05]} 45. Qf1 {
[%emt 0:01:12]} Bb4+ {[%emt 0:00:06]} 0-1